bitfinex-derivatives/quotes_SOLF0:USTF0_20251219
["timestamp","ask_amount","ask_price","bid_price","bid_amount"]
[1766163490468,0.05447632,125.37,125.32,7.1851]
[1766163490663,0.05447632,125.37,125.33,0.0606709]
[1766163490975,0.05447632,125.37,125.33,7.2454709]
[1766163491280,0.05447632,125.37,125.33,0.0606709]
[1766163492978,0.05447632,125.37,125.33,47.2006709]
[1766163493470,0.05447632,125.37,125.33,7.2454709]
[1766163493669,0.05447632,125.37,125.33,54.3854709]
[1766163494778,0.05447632,125.37,125.33,79.5954709]
[1766163494976,57.28112265,125.42,125.34,7.184]
[1766163495171,57.28112265,125.42,125.34,25.21]
[1766163495768,25.82,125.41,125.34,25.21]
[1766163496171,25.82,125.41,125.33,47.14]
[1766163496172,0.0531738,125.39,125.32,7.185]
[1766163496371,25.8731738,125.39,125.31,25.21]
[1766163496582,25.82,125.39,125.32,47.14]
[1766163497173,25.82,125.38,125.3,7.1863]
[1766163497374,111.7079,125.4,125.3,32.3963]
[1766163497375,25.87077118,125.37,125.3,32.3963]
[1766163497577,0.05077118,125.37,125.3,25.21]
[1766163497779,0.05077118,125.37,125.31,32.396]
[1766163498077,33.002,125.39,125.31,32.396]
[1766163498281,0.05539305,125.36,125.34,0.05808024]
[1766163499680,5.64172365,125.41,125.34,24.70808024]
[1766163499983,24.61,125.42,125.34,24.70808024]
[1766163500185,24.61,125.42,125.34,24.65]
[1766163500783,0.05162255,125.39,125.37,0.05120639]
[1766163502485,0.00162255,125.39,125.37,0.05120639]
[1766163502783,55.1806731,125.43,125.37,0.05120639]
[1766163503584,0.05368428,125.41,125.37,0.05120639]
[1766163504280,24.66368428,125.41,125.37,0.00120639]
[1766163508474,71.78368428,125.41,125.37,0.00120639]
[1766163508685,24.61,125.4,125.3,24.65]
[1766163509487,28.41544914,125.39,125.3,24.65]
[1766163509786,0.05416924,125.36,125.33,0.05915104]
[1766163515885,0.00416924,125.36,125.33,25.48915104]
[1766163516180,50.92544914,125.41,125.33,25.48915104]
[1766163516389,50.92544914,125.41,125.33,25.43]
[1766163516585,47.12,125.41,125.33,25.43]
[1766163516892,80.5604,125.41,125.33,25.43]
[1766163517393,0.06035887,125.38,125.36,0.05243509]
[1766163517787,0.06035887,125.38,125.36,0.00243509]
[1766163519093,7.24255887,125.38,125.36,0.00243509]
[1766163519492,33.50255887,125.38,125.36,0.00243509]
[1766163519797,26.26,125.37,125.3,25.43]
[1766163520097,7.1834,125.36,125.3,25.43]
[1766163520396,26.26,125.37,125.3,25.43]
[1766163520596,0.00148027,125.35,125.32,25.48559866]
[1766163520899,26.26,125.4,125.33,25.43]
[1766163521192,47.12,125.41,125.34,25.43]
[1766163521782,0.05957665,125.39,125.36,0.05327235]
[1766163523294,0.05957665,125.39,125.36,0.00327235]
[1766163523295,7.24127665,125.39,125.36,0.00327235]
[1766163523993,0.05957665,125.39,125.36,0.00327235]
[1766163534916,0.05957665,125.39,125.33,32.6148]
[1766163534917,26.31957665,125.39,125.3,7.18839737]
[1766163535113,26.26,125.38,125.3,25.43]
[1766163536020,0.06032101,125.35,125.33,0.05891968]
[1766163542119,26.32032101,125.35,125.28,25.43]
[1766163542327,26.26,125.35,125.25,25.43]
[1766163542918,7.1851,125.33,125.25,25.43]
[1766163543222,26.26,125.35,125.28,25.48644067]
[1766163543715,7.1848,125.34,125.28,0.05644067]
[1766163544108,0.05899018,125.32,125.28,0.05644067]
[1766163545424,0.05899018,125.32,125.28,25.53644067]
[1766163545630,31.4864,125.31,125.21,25.48]
[1766163545928,24.3,125.3,125.21,25.48]
[1766163546621,0.0604189,125.27,125.24,0.05611473]
[1766163548926,24.3604189,125.27,125.2,1.85756688]
[1766163549126,24.3604189,125.27,125.19,25.48]
[1766163549420,24.3,125.27,125.19,25.48]
[1766163550015,0.05540144,125.24,125.22,0.05128629]
[1766163552325,24.3,125.29,125.22,25.53128629]
[1766163552525,24.3,125.29,125.22,25.48]
[1766163552727,30.25359535,125.31,125.23,25.48]
[1766163553426,0.05744781,125.28,125.26,0.05143219]
[1766163555442,0.05744781,125.28,125.22,7.191]
[1766163555627,0.05744781,125.28,125.22,32.671]
[1766163556232,0.05744781,125.28,125.24,0.05667752]
[1766163561439,0.05744781,125.28,125.24,32.21647752]
[1766163561735,72.08,125.32,125.24,32.21647752]
[1766163561736,72.08,125.32,125.25,24.97]
[1766163562044,24.96,125.34,125.26,24.97]
[1766163562631,0.05785641,125.31,125.29,0.05798641]
[1766163567746,24.96,125.35,125.29,25.02798641]
[1766163568536,47.16,125.36,125.29,25.02798641]
[1766163568748,0.05212187,125.34,125.29,25.02798641]
[1766163568940,0.05212187,125.34,125.3,0.05542142]
[1766163569133,0.05212187,125.34,125.3,32.21202142]
[1766163569541,0.05212187,125.34,125.3,25.02542142]
[1766163569748,0.05212187,125.34,125.3,0.05542142]
[1766163577545,25.96212187,125.34,125.3,0.05542142]
[1766163581152,25.96212187,125.34,125.27,7.1881]
[1766163581448,29.71850516,125.33,125.27,7.1881]
[1766163582150,0.05390511,125.31,125.29,0.05817203]
[1766163582648,25.96390511,125.31,125.25,7.1893]
[1766163582847,25.96390511,125.31,125.24,24.85]
[1766163583549,25.96390511,125.31,125.26,0.05686719]
[1766163584434,29.77241027,125.31,125.26,0.05686719]
[1766163585342,25.91,125.3,125.26,0.05686719]
[1766163586246,25.91,125.3,125.23,7.1906]
[1766163586247,25.91,125.29,125.23,7.1906]
[1766163587253,0.05995035,125.27,125.25,0.05436163]
[1766163592650,33.0962,125.31,125.25,0.05436163]
[1766163593154,25.91,125.3,125.25,0.05436163]
[1766163593546,0.05403847,125.29,125.25,0.05436163]
[1766163593746,0.05403847,125.29,125.25,24.90436163]
[1766163594255,0.05403847,125.29,125.25,32.09376163]
[1766163595155,0.00403847,125.29,125.26,32.0389]
[1766163595654,0.00403847,125.29,125.27,24.85]
[1766163598562,33.0948,125.34,125.27,24.85]
[1766163599256,25.91,125.34,125.27,32.0382]
[1766163599663,0.05983052,125.32,125.29,0.05438937]
[1766163601564,25.91,125.36,125.29,24.90438937]
[1766163601762,25.91,125.38,125.31,24.85]
[1766163601959,29.71749454,125.37,125.29,24.85]
[1766163602159,29.71749454,125.37,125.29,72.01]
[1766163602365,25.91,125.39,125.31,24.85]
[1766163602560,0.0585712,125.36,125.34,0.05981796]
[1766163603665,0.0585712,125.36,125.31,24.85]
[1766163603961,25.9685712,125.36,125.29,72.01]
[1766163604365,25.9685712,125.36,125.29,79.197]
[1766163604563,25.9685712,125.36,125.31,0.06099677]
[1766163604866,0.0585712,125.36,125.31,26.95099677]
[1766163605067,0.0585712,125.36,125.32,26.89]
[1766163606060,0.0585712,125.36,125.32,34.0753]
[1766163606259,0.0585712,125.36,125.31,0.06099677]
[1766163606460,0.0585712,125.36,125.31,26.95099677]
[1766163607960,26.8685712,125.36,125.31,0.06099677]
[1766163610365,26.81,125.34,125.31,0.00099677]
[1766163611368,0.0585712,125.36,125.31,0.00099677]
[1766163611571,0.0585712,125.36,125.31,34.07699677]
[1766163611771,26.8685712,125.36,125.31,7.18699677]
[1766163611973,26.8685712,125.36,125.31,0.00099677]
[1766163619378,25.75,125.34,125.31,0.00099677]
[1766163620883,3.8074903,125.35,125.31,0.00099677]
[1766163621487,25.8085712,125.36,125.31,0.00099677]
[1766163622189,25.75,125.35,125.31,0.00099677]
[1766163624686,25.8085712,125.36,125.31,0.00099677]
[1766163625585,25.8085712,125.36,125.31,7.18699677]
[1766163625793,25.8085712,125.36,125.31,0.00099677]
[1766163625986,29.6160615,125.36,125.31,0.00099677]
[1766163626386,25.75,125.33,125.25,25.0]
[1766163627183,25.75,125.33,125.27,7.1883]
[1766163627493,0.05801253,125.31,125.29,0.00315824]
[1766163636295,26.12801253,125.31,125.29,0.00315824]
[1766163637602,26.12801253,125.31,125.24,33.9498]
[1766163638699,26.12801253,125.31,125.26,0.05649016]
[1766163639804,26.12801253,125.31,125.26,26.81649016]
[1766163639805,0.05801253,125.31,125.26,26.81649016]
[1766163640000,0.05801253,125.31,125.27,7.1882]
[1766163640305,0.05801253,125.31,125.26,0.05649016]
[1766163640306,26.12801253,125.31,125.26,0.05649016]
[1766163641601,26.12801253,125.31,125.26,7.24529016]
[1766163642602,0.05801253,125.31,125.27,7.1882]
[1766163643502,0.05801253,125.31,125.27,33.9482]
[1766163645004,26.07,125.37,125.3,26.76]
[1766163645208,26.07,125.37,125.28,26.76]
[1766163645806,26.07,125.37,125.3,7.1863]
[1766163645997,0.05623225,125.34,125.31,0.05557059]
[1766163647905,26.07,125.38,125.31,26.81557059]
[1766163648293,26.07,125.38,125.31,0.05557059]
[1766163648809,26.12088111,125.36,125.31,0.05557059]
[1766163649006,26.12088111,125.36,125.32,0.0515785]
[1766163649305,26.12088111,125.36,125.32,0.0015785]
[1766163649811,32.0735893,125.36,125.26,26.76]
[1766163650007,32.02270819,125.36,125.26,26.76]
[1766163650206,26.07,125.33,125.25,7.1894]
[1766163650608,0.05962995,125.3,125.28,0.05945775]
[1766163652999,0.05962995,125.3,125.24,26.76]
[1766163653907,0.05962995,125.3,125.26,0.06092754]
[1766163654219,26.12962995,125.3,125.26,0.00092754]
[1766163655617,33.31662995,125.3,125.26,0.00092754]
[1766163656316,26.07,125.29,125.26,0.00092754]
[1766163656503,26.07,125.28,125.2,33.9521]
[1766163657000,26.07,125.28,125.21,26.76]
[1766163657398,26.07,125.28,125.22,26.76]
[1766163657609,0.05991542,125.26,125.24,0.05160863]
[1766163659210,0.05991542,125.26,125.24,0.00160863]
[1766163662305,26.07,125.31,125.24,0.00160863]
[1766163663313,26.12051276,125.29,125.24,0.00160863]
[1766163663515,26.12051276,125.29,125.25,0.05130654]
[1766163665518,0.00051276,125.29,125.25,32.91070654]
[1766163666020,24.6,125.35,125.27,25.67]
[1766163666218,24.6,125.35,125.28,137.4792]
[1766163666417,24.6,125.35,125.29,25.67]
[1766163666611,24.6,125.35,125.3,7.1865]
[1766163666916,24.6,125.35,125.26,184.6548]
[1766163667118,0.05722555,125.34,125.31,0.0609079]
[1766163668317,24.6,125.38,125.31,25.7309079]
[1766163668519,24.6,125.39,125.31,25.7309079]
[1766163668724,24.6,125.39,125.31,25.67]
[1766163669427,0.05906161,125.36,125.34,0.05390338]
[1766163670325,0.05906161,125.36,125.34,0.00390338]
[1766163671225,24.65906161,125.36,125.27,47.16]
[1766163671520,24.6,125.36,125.27,47.16]
[1766163671728,24.6,125.36,125.27,72.83]
[1766163672123,0.05901473,125.33,125.3,0.05611255]
[1766163673221,24.65901473,125.33,125.27,25.67]
[1766163673428,24.65901473,125.33,125.24,25.67]
[1766163673626,30.55270819,125.33,125.24,25.67]
[1766163674229,24.66108648,125.3,125.23,7.1904]
[1766163674423,24.6,125.28,125.18,25.67]
[1766163674620,30.55270819,125.27,125.16,184.7436]
[1766163675222,0.05389014,125.23,125.2,0.05335079]
[1766163675817,24.65389014,125.23,125.2,0.00335079]
[1766163679418,0.05389014,125.23,125.2,0.00335079]
[1766163681030,47.14,125.28,125.2,25.15335079]
[1766163681234,111.7899,125.31,125.21,25.15]
[1766163681235,24.4,125.31,125.21,25.15]
[1766163681421,24.4,125.31,125.22,25.15]
[1766163681628,24.4,125.31,125.23,25.15]
[1766163682017,0.05531017,125.28,125.26,0.05331671]
[1766163682625,0.05531017,125.28,125.26,0.00331671]
[1766163683131,24.4,125.34,125.26,25.15331671]
[1766163683332,24.4,125.34,125.26,25.15]
[1766163684125,0.05145557,125.31,125.29,0.05699616]
[1766163685028,24.4,125.34,125.29,0.05699616]
[1766163685223,47.16,125.36,125.29,0.05699616]
[1766163685432,71.56,125.36,125.29,0.05699616]
[1766163686136,0.05523497,125.34,125.29,0.05699616]
[1766163686939,24.45523497,125.34,125.29,0.05699616]
[1766163687142,24.45523497,125.34,125.26,7.1888]
[1766163687440,24.4,125.34,125.26,7.1888]
[1766163688234,0.05979624,125.31,125.29,0.0505377]
[1766163688937,0.05979624,125.31,125.29,0.0005377]
[1766163689831,24.45979624,125.31,125.29,0.0005377]
[1766163692242,24.45979624,125.31,125.22,32.3409]
[1766163692550,24.4,125.3,125.2,25.15]
[1766163692747,24.4,125.29,125.21,7.1917]
[1766163693253,0.06094339,125.26,125.24,0.05634646]
[1766163693942,0.06094339,125.26,125.21,7.1917]
[1766163694744,0.06094339,125.26,125.22,26.66]
[1766163694745,0.00094339,125.26,125.22,26.66]
[1766163695346,0.00094339,125.26,125.2,26.66]
[1766163695748,0.00094339,125.26,125.22,0.05037709]
[1766163698947,24.38094339,125.26,125.22,0.05037709]
[1766163699858,24.38094339,125.26,125.22,0.00037709]
[1766163702762,0.00094339,125.26,125.22,0.00037709]
[1766163704650,7.1902,125.24,125.22,0.00037709]
[1766163705557,54.35024339,125.26,125.22,0.00037709]
[1766163705861,47.16094339,125.26,125.22,0.00037709]
[1766163708348,0.00094339,125.26,125.22,0.00037709]
[1766163708550,0.00094339,125.26,125.22,26.66037709]
[1766163709462,0.00094339,125.26,125.22,33.85157709]
[1766163709760,0.00094339,125.26,125.22,30.4720091]
[1766163709956,0.00094339,125.26,125.25,26.66]
[1766163710159,29.78,125.34,125.26,26.66]
[1766163710860,29.78,125.34,125.27,33.8481]
[1766163711056,29.78,125.34,125.28,26.66]
[1766163711257,0.05470138,125.32,125.28,26.66]
[1766163711760,0.05470138,125.32,125.25,159.0144]
[1766163711761,0.05470138,125.32,125.26,26.66]
[1766163712656,0.05470138,125.32,125.27,7.1881]
[1766163712861,0.05470138,125.32,125.27,26.66]
[1766163713257,0.05470138,125.32,125.28,26.72073325]
[1766163713258,0.00470138,125.32,125.28,26.72073325]
[1766163714263,0.00470138,125.32,125.29,33.8471]
[1766163718670,0.00470138,125.32,125.28,0.06073325]
[1766163720668,0.00470138,125.32,125.3,33.8465]
[1766163721269,0.00470138,125.32,125.28,7.24823325]
[1766163722474,0.00470138,125.32,125.28,33.90823325]
[1766163724367,0.00470138,125.32,125.28,0.06073325]
[1766163724877,25.52,125.31,125.23,7.1903]
[1766163725173,25.52,125.34,125.25,24.42]
[1766163725357,25.52,125.34,125.26,24.42]
[1766163725873,0.05460267,125.31,125.26,24.42]
[1766163726169,0.05460267,125.31,125.27,7.1882]
[1766163728269,0.05460267,125.31,125.28,7.1877]
[1766163729073,0.00460267,125.31,125.28,7.1877]
[1766163729279,0.00460267,125.31,125.28,31.6077]
[1766163729478,0.00460267,125.31,125.29,24.42]
[1766163729675,72.66,125.36,125.29,31.6071]
[1766163729875,25.52,125.36,125.29,24.42]
[1766163730176,25.52,125.38,125.3,71.58]
[1766163730573,25.52,125.38,125.31,24.42]
[1766163730777,0.00139905,125.35,125.33,0.05890023]
[1766163730980,25.52,125.4,125.31,24.42]
[1766163731574,32.7011,125.4,125.32,7.1853]
[1766163731882,0.0585278,125.37,125.35,0.05528024]
[1766163733179,0.0585278,125.37,125.31,24.42]
[1766163733783,0.0585278,125.37,125.32,32.1753]
[1766163734175,0.0585278,125.37,125.33,0.0598301]
[1766163737784,0.0585278,125.37,125.33,32.2346301]
[1766163738380,0.0585278,125.37,125.33,25.0498301]
[1766163738885,0.0585278,125.37,125.33,0.0598301]
[1766163742183,0.0585278,125.37,125.33,32.2346301]
[1766163742384,50.94525071,125.41,125.34,24.99]
[1766163742583,47.14,125.41,125.34,24.99]
[1766163743384,47.14,125.41,125.35,24.99]
[1766163743585,24.7,125.42,125.37,0.06101668]
[1766163743586,0.0023993,125.39,125.37,0.06101668]
[1766163745288,0.0023993,125.39,125.37,7.24351668]
[1766163745784,24.7,125.44,125.37,26.30101668]
[1766163745992,24.7,125.44,125.38,7.1819]
[1766163746691,0.05172899,125.42,125.4,0.0593405]
[1766163747293,47.14,125.46,125.4,0.0593405]
[1766163747485,47.14,125.46,125.4,26.2993405]
[1766163748089,24.33,125.47,125.4,26.2993405]
[1766163748090,24.33,125.47,125.41,33.4202]
[1766163748287,24.33,125.47,125.43,0.05702277]
[1766163749296,24.33,125.47,125.39,7.1814]
[1766163749496,24.33,125.47,125.39,33.4214]
[1766163749697,24.33,125.47,125.4,33.4206]
[1766163749890,24.33,125.47,125.4,26.24]
[1766163750090,40.84374346,125.5,125.4,26.24]
[1766163750292,0.05215003,125.45,125.42,7.24047948]
[1766163750490,0.05215003,125.45,125.42,7.23832667]
[1766163751292,0.05215003,125.45,125.42,0.05872667]
[1766163751595,0.00215003,125.45,125.42,0.05872667]
[1766163752495,24.33,125.5,125.42,33.47832667]
[1766163752695,24.33,125.5,125.42,26.24]
[1766163752899,24.33,125.52,125.45,26.24]
[1766163753295,0.05343064,125.5,125.47,0.05315357]
[1766163753493,0.05343064,125.5,125.47,0.00315357]
[1766163756907,26.72,125.55,125.47,0.00315357]
[1766163757109,26.72,125.55,125.46,33.4472]
[1766163757609,33.8926,125.55,125.46,33.4472]
[1766163757804,47.12,125.56,125.47,33.4467]
[1766163757805,26.72,125.54,125.47,33.4467]
[1766163758003,0.05445838,125.52,125.49,0.06088053]
[1766163758898,73.84,125.56,125.49,26.33088053]
[1766163759106,7.1703,125.59,125.49,26.33088053]
[1766163759107,26.72,125.58,125.49,26.33088053]
[1766163759304,26.72,125.58,125.49,26.27]
[1766163759609,26.72,125.56,125.49,26.27]
[1766163759807,26.72,125.56,125.47,33.4466]
[1766163760108,0.05060021,125.53,125.5,0.05550648]
[1766163760305,26.72,125.56,125.5,0.05550648]
[1766163761409,26.77665513,125.54,125.47,47.1]
[1766163762010,26.77665513,125.54,125.47,73.37]
[1766163762419,0.05665513,125.54,125.49,0.05536857]
[1766163762604,26.77665513,125.54,125.49,0.05536857]
[1766163764125,0.05665513,125.54,125.49,26.32536857]
[1766163764314,26.72,125.58,125.49,26.32536857]
[1766163764621,26.72,125.58,125.49,26.27]
[1766163765421,0.06064254,125.55,125.52,0.05562579]
[1766163766819,54.2699,125.6,125.52,26.32562579]
[1766163767012,26.72,125.59,125.52,26.27]
[1766163767523,33.8902,125.59,125.52,26.27]
[1766163767714,0.0575248,125.57,125.54,0.05678122]
[1766163771715,26.72,125.64,125.54,26.32678122]
[1766163772015,26.72,125.64,125.54,26.27]
[1766163772218,26.72,125.63,125.55,26.27]
[1766163772821,0.05087261,125.6,125.58,0.05131923]
[1766163776222,26.77087261,125.6,125.53,47.06]
[1766163776422,26.72,125.6,125.53,73.33]
[1766163777125,33.8896,125.6,125.55,0.05381085]
[1766163777329,0.05682196,125.58,125.55,0.05381085]
[1766163778021,0.05682196,125.58,125.55,0.00381085]
[1766163778227,26.77682196,125.58,125.55,0.00381085]
[1766163779327,0.05682196,125.58,125.55,0.00381085]
[1766163779722,26.77682196,125.58,125.55,0.00381085]
[1766163779927,26.77682196,125.58,125.5,33.4448]
[1766163780132,26.72,125.58,125.5,33.4448]
[1766163780631,26.72,125.58,125.48,47.06]
[1766163780632,26.72,125.58,125.51,33.4444]
[1766163780822,26.72,125.58,125.51,26.27]
[1766163781018,26.72,125.58,125.53,0.0579484]
[1766163781019,0.05296498,125.56,125.53,0.0579484]
[1766163785934,0.00296498,125.56,125.53,25.0079484]
[1766163786440,24.9,125.63,125.55,24.95]
[1766163787439,0.06025738,125.6,125.58,0.05846706]
[1766163788028,0.06025738,125.6,125.53,24.95]
[1766163788233,0.06025738,125.6,125.5,135.5299]
[1766163788234,0.06025738,125.6,125.55,24.95]
[1766163788434,32.0687,125.62,125.55,24.95]
[1766163788638,24.9,125.61,125.55,24.95]
[1766163789024,0.05343357,125.59,125.57,0.00087299]
[1766163789235,24.95343357,125.59,125.57,0.00087299]
[1766163789645,24.95343357,125.59,125.5,24.95]
[1766163789828,24.9,125.59,125.51,24.95]
[1766163790532,0.05477668,125.56,125.54,0.05735742]
[1766163792043,24.95477668,125.56,125.48,32.126]
[1766163792340,24.9,125.56,125.48,32.126]
[1766163792841,0.05884135,125.53,125.51,0.05588822]
[1766163793041,0.05884135,125.53,125.48,32.126]
[1766163793042,24.95884135,125.53,125.46,7.1771]
[1766163793339,24.9,125.58,125.47,24.95]
[1766163793546,24.9,125.58,125.5,24.95]
[1766163794035,0.05292934,125.55,125.53,0.05410819]
[1766163795034,24.95292934,125.55,125.48,24.95]
[1766163795234,24.9,125.55,125.45,24.95]
[1766163795641,24.9,125.54,125.45,24.95]
[1766163796033,24.9,125.54,125.43,111.6729]
[1766163796034,24.95897517,125.51,125.43,32.1289]
[1766163796234,24.9,125.5,125.4,24.95]
[1766163796448,24.9,125.5,125.4,136.6516]
[1766163796652,24.9,125.5,125.42,7.1795]
[1766163797040,0.05851567,125.47,125.45,0.0576461]
[1766163797648,40.03182213,125.53,125.45,0.0576461]
[1766163797948,24.9,125.52,125.44,24.95]
[1766163798151,71.96,125.55,125.46,24.95]
[1766163798335,71.96,125.55,125.47,24.64]
[1766163798652,71.96,125.55,125.5,0.0508808]
[1766163798653,0.05764214,125.52,125.5,0.0508808]
[1766163799846,0.05764214,125.52,125.5,0.0008808]
[1766163800058,25.38764214,125.52,125.5,0.0008808]
[1766163800244,32.5055,125.5,125.41,7.31645697]
[1766163800446,25.33,125.47,125.38,7.31645697]
[1766163800748,25.33,125.47,125.37,24.64]
[1766163800749,25.33,125.46,125.37,7.1824]
[1766163800939,25.33,125.46,125.36,24.64]
[1766163801143,25.33,125.46,125.38,111.7187]
[1766163801347,25.33,125.46,125.4,0.05381376]
[1766163801763,25.33,125.44,125.33,24.64]
[1766163802057,25.33,125.43,125.33,24.64]
[1766163802848,0.05953635,125.39,125.37,0.0522702]
[1766163804250,25.33,125.43,125.37,0.0522702]
[1766163804456,72.39,125.45,125.37,0.0522702]
[1766163804649,72.39,125.45,125.35,24.64]
[1766163804856,72.39,125.45,125.36,24.64]
[1766163805152,72.39,125.45,125.36,71.72]
[1766163805355,0.05367189,125.42,125.39,0.05159708]
[1766163807458,0.05367189,125.42,125.33,111.7635]
[1766163807459,25.38367189,125.42,125.33,24.64]
[1766163807645,32.5098,125.42,125.33,24.64]
[1766163807849,7.1798,125.42,125.33,24.64]
[1766163808545,7.1798,125.42,125.36,0.05566555]
[1766163808546,0.05941913,125.39,125.36,0.05566555]
[1766163814860,0.05941913,125.39,125.32,24.34]
[1766163815668,0.05941913,125.39,125.32,31.5253]
[1766163815959,0.05941913,125.39,125.34,0.05787904]
[1766163817569,0.05941913,125.39,125.34,24.39787904]
[1766163818153,0.05941913,125.39,125.34,31.58197904]
[1766163818361,0.05941913,125.39,125.35,24.34]
[1766163820761,0.05941913,125.39,125.34,0.05787904]
[1766163822462,0.05941913,125.39,125.3,47.12]
[1766163822463,8.16941913,125.39,125.3,7.1863]
[1766163822657,8.05,125.38,125.29,24.34]
[1766163823262,15.2328,125.37,125.29,31.5271]
[1766163823456,0.06060435,125.34,125.29,31.5271]
[1766163825755,0.00060435,125.34,125.3,31.58260327]
[1766163825959,8.05,125.37,125.3,31.58260327]
[1766163826160,47.12,125.39,125.3,24.39630327]
[1766163826357,47.12,125.39,125.32,24.34]
[1766163826971,0.06075892,125.37,125.34,0.05053265]
[1766163827365,0.00075892,125.37,125.34,0.05053265]
[1766163827667,0.00075892,125.37,125.34,24.39053265]
[1766163828577,8.23,125.43,125.34,24.39053265]
[1766163828766,8.24,125.42,125.34,24.34]
[1766163829276,8.25,125.43,125.33,24.34]
[1766163829462,0.05922548,125.39,125.33,24.34]
[1766163830573,0.05922548,125.39,125.35,0.05162769]
[1766163836277,8.31922548,125.39,125.35,0.05162769]
[1766163837477,0.05922548,125.39,125.35,0.05162769]
[1766163837781,0.05922548,125.39,125.35,24.39162769]
[1766163838569,0.05922548,125.39,125.35,0.05162769]
[1766163839879,0.05922548,125.39,125.35,31.57522769]
[1766163840079,0.05922548,125.39,125.35,24.39162769]
[1766163840475,0.05922548,125.39,125.36,7.1831]
[1766163840786,8.28,125.42,125.36,7.1831]
[1766163841087,8.37,125.41,125.34,31.524]
[1766163841490,8.37,125.41,125.35,24.34]
[1766163841687,0.05610368,125.39,125.37,0.05621677]
[1766163841986,8.38,125.43,125.37,0.05621677]
[1766163842989,0.05872268,125.41,125.37,0.05621677]
[1766163843594,8.4,125.46,125.37,24.39621677]
[1766163843886,8.4,125.46,125.4,7.1808]
[1766163844189,56.46142956,125.49,125.4,24.34]
[1766163844190,8.46,125.48,125.4,24.34]
[1766163844390,47.12,125.49,125.42,24.54]
[1766163844890,0.05641754,125.47,125.44,0.051989]
[1766163848691,0.05641754,125.47,125.44,0.001989]
[1766163848879,0.05641754,125.47,125.4,24.54]
[1766163849287,0.05641754,125.47,125.4,31.7208]
[1766163849792,0.05641754,125.47,125.42,0.05591623]
[1766163851885,7.88,125.46,125.38,7.1817]
[1766163852191,7.88,125.46,125.38,31.7217]
[1766163852694,15.0577,125.46,125.38,31.7217]
[1766163852889,15.0577,125.46,125.41,0.05701975]
[1766163853092,0.05807575,125.43,125.41,0.05701975]
[1766163854090,0.05807575,125.43,125.38,31.7217]
[1766163854296,7.59807575,125.43,125.35,24.54]
[1766163854493,7.54,125.43,125.35,24.54]
[1766163855186,0.06061191,125.4,125.38,0.05793941]
[1766163855398,0.06061191,125.4,125.35,24.54]
[1766163855891,7.44061191,125.4,125.32,24.54]
[1766163856094,7.38,125.4,125.31,24.54]
[1766163856283,0.05153281,125.37,125.34,0.03101978]
[1766163863401,6.73,125.42,125.34,24.95101978]
[1766163863698,6.73,125.42,125.34,24.92]
[1766163864200,0.05484309,125.39,125.37,0.05728472]
[1766163865603,0.00484309,125.39,125.37,0.05728472]
[1766163866498,47.1,125.44,125.38,24.92]
[1766163866707,6.45,125.46,125.38,24.92]
[1766163867592,0.06104993,125.43,125.41,0.05551509]
[1766163869308,47.12,125.47,125.41,0.05551509]
[1766163870097,47.12,125.47,125.41,24.97551509]
[1766163870297,0.06090131,125.45,125.41,24.97551509]
[1766163871209,0.06090131,125.45,125.41,32.15561509]
[1766163872514,0.06090131,125.45,125.41,0.05551509]
[1766163875410,47.12,125.47,125.41,24.88551509]
[1766163875907,47.12,125.47,125.42,32.0095]
[1766163876312,0.0542748,125.46,125.41,0.05551509]
[1766163876902,5.8142748,125.46,125.41,0.05551509]
[1766163877710,5.63,125.45,125.37,24.83]
[1766163878014,5.63,125.45,125.34,24.83]
[1766163878801,0.05869769,125.41,125.38,0.05265922]
[1766163880911,12.8085,125.45,125.38,0.05265922]
[1766163881410,5.63,125.45,125.38,32.06455922]